bitfinex-derivatives/quotes_ETHF0:USTF0_20250604
["timestamp","ask_amount","ask_price","bid_price","bid_amount"]
[1749025116926,0.78223394,2647.2,2647.1,5.27367301]
[1749025117329,0.02715394,2647.2,2647.1,5.27367301]
[1749025117528,0.02715394,2647.2,2647.1,6.57867301]
[1749025117934,0.79581091,2647.2,2647.1,6.57867301]
[1749025118129,0.79581091,2647.2,2647.1,5.27367301]
[1749025118336,0.79581091,2647.2,2647.1,0.00567301]
[1749025118524,0.79581091,2647.2,2647.1,7.06267301]
[1749025118832,0.79581091,2647.2,2647.1,7.06067301]
[1749025119036,0.80690751,2647.2,2647.1,7.06067301]
[1749025119732,0.75522,2646.7,2646.6,3.2078]
[1749025120036,0.80704751,2646.7,2646.6,3.2078]
[1749025120228,0.80704751,2646.7,2646.6,10.2588]
[1749025121933,0.80704751,2646.7,2646.6,10.2498]
[1749025123934,0.80704751,2646.7,2646.6,1.793]
[1749025124127,0.75537,2646.2,2646.1,1.793]
[1749025124325,0.75537,2646.2,2646.1,7.03]
[1749025124532,4.02864965,2646.2,2646.1,7.03]
[1749025125132,0.75551,2645.7,2645.6,1.3026]
[1749025125342,0.75551,2645.7,2645.6,8.3276]
[1749025125535,0.75554,2645.6,2645.5,21.3758]
[1749025125736,0.75554,2645.6,2645.5,28.3988]
[1749025125930,0.75554,2645.6,2645.5,24.4714]
[1749025126138,0.83467179,2645.6,2645.5,29.7014]
[1749025126637,0.84832393,2645.6,2645.5,29.7014]
[1749025127033,0.84832393,2645.6,2645.5,29.6964]
[1749025127333,0.84832393,2645.6,2645.5,18.168]
[1749025127637,0.85919502,2645.6,2645.5,24.20894]
[1749025128044,0.85919502,2645.6,2645.5,24.20794]
[1749025128831,0.85919502,2645.6,2645.5,17.19494]
[1749025129039,0.85919502,2645.6,2645.5,24.20394]
[1749025130739,0.85919502,2645.6,2645.5,24.19494]
[1749025131045,0.92650978,2645.6,2645.5,24.19494]
[1749025131643,0.92650978,2645.6,2645.5,27.40274]
[1749025131945,0.92650978,2645.6,2645.5,27.39774]
[1749025132248,0.92650978,2645.6,2645.5,28.61564]
[1749025132741,0.92650978,2645.6,2645.5,27.39774]
[1749025133046,4.14547713,2645.6,2645.5,21.26972]
[1749025133244,4.14547713,2645.6,2645.5,16.06472]
[1749025133542,4.15664448,2645.6,2645.5,23.06272]
[1749025133841,0.94884448,2645.6,2645.5,23.06272]
[1749025134150,0.94884448,2645.6,2645.5,24.27442]
[1749025134839,0.94884448,2645.6,2645.5,23.06272]
[1749025135534,0.96249358,2645.6,2645.5,23.06272]
[1749025135741,0.96249358,2645.6,2645.5,16.06472]
[1749025135940,9.17029358,2645.6,2645.5,17.85772]
[1749025136149,4.17029358,2645.6,2645.5,23.04972]
[1749025136540,4.18394268,2645.6,2645.5,23.04972]
[1749025137145,4.18613729,2645.6,2645.5,23.04972]
[1749025137550,0.97833729,2645.6,2645.5,23.04972]
[1749025137749,0.97833729,2645.6,2645.5,24.28022]
[1749025138247,0.97833729,2645.6,2645.5,17.85772]
[1749025138435,0.97833729,2645.6,2645.5,23.03872]
[1749025139245,0.97833729,2645.6,2645.5,24.26402]
[1749025139647,0.97833729,2645.6,2645.5,16.06472]
[1749025139840,0.97833729,2645.6,2645.5,23.03472]
[1749025140051,0.97833729,2645.6,2645.5,24.26002]
[1749025140547,0.97833729,2645.6,2643.5,6.4502842]
[1749025140548,0.75565,2645.2,2645.1,1.736]
[1749025141049,5.75565,2645.2,2645.1,6.911]
[1749025141246,0.91113253,2645.2,2645.1,6.911]
[1749025141753,0.75571,2645.0,2644.9,0.00567301]
[1749025141949,0.75571,2645.0,2644.9,6.91667301]
[1749025142150,0.91119253,2645.0,2644.9,6.91667301]
[1749025142456,0.91119253,2645.0,2644.9,6.91467301]
[1749025142848,0.9248477,2645.0,2644.9,1.74167301]
[1749025143045,4.1326477,2645.0,2644.9,0.78363301]
[1749025143247,8.3769377,2645.0,2644.6,1.736]
[1749025143446,3.96359,2644.7,2644.6,1.736]
[1749025143659,0.75579,2644.7,2644.6,6.904]
[1749025143862,0.93854226,2644.7,2644.6,6.904]
[1749025144455,0.93854226,2644.7,2644.6,8.1289]
[1749025145056,0.95205219,2644.7,2644.6,8.1289]
[1749025145265,0.75582,2644.6,2644.5,3.2078]
[1749025145455,0.75582,2644.6,2644.5,6.9]
[1749025145662,0.75582,2644.6,2644.5,8.1597]
[1749025146163,0.96313004,2644.6,2644.5,8.1597]
[1749025146464,0.96313004,2644.6,2644.5,2.9957]
[1749025146664,0.96313004,2644.6,2644.5,8.1577]
[1749025147052,0.75585,2644.5,2644.4,0.00567301]
[1749025147360,0.75585,2644.5,2644.4,6.90367301]
[1749025147758,0.75585,2644.5,2644.4,0.00567301]
[1749025147960,0.96316004,2644.5,2644.4,6.90167301]
[1749025149065,0.96316004,2644.5,2644.4,1.74167301]
[1749025149567,0.96316004,2644.5,2644.4,3.01e-06]
[1749025149568,5.96316004,2644.5,2644.4,3.01e-06]
[1749025149769,7.20756004,2644.5,2644.4,5.15700301]
[1749025150161,6.45171004,2644.5,2644.3,1.737]
[1749025150365,0.75594,2644.2,2644.1,19.88767301]
[1749025150665,0.75594,2644.2,2644.1,0.00567301]
[1749025150865,0.75594,2644.2,2642.7,4.53212468]
[1749025150866,0.75608,2643.7,2643.6,1.737]
[1749025151065,0.96339004,2643.7,2643.6,6.889]
[1749025151265,0.75622,2643.2,2643.1,3.2078]
[1749025151569,1.89033,2643.6,2643.1,10.0948]
[1749025151766,0.00567301,2643.6,2643.1,10.09862141]
[1749025151963,0.00567301,2643.6,2643.4,3.96395]
[1749025152158,0.00567301,2643.6,2643.5,5.151]
[1749025152361,0.00567301,2643.6,2643.5,5.9402]
[1749025152561,0.00567301,2643.6,2643.5,10.9402]
[1749025152769,0.00567301,2643.6,2643.5,11.7382]
[1749025153376,0.00567301,2643.6,2643.5,12.49434]
[1749025154864,0.00567301,2643.6,2643.5,14.22334]
[1749025155266,1.88969,2644.5,2643.8,0.75603]
[1749025155472,1.88971,2644.4,2643.9,3.2078]
[1749025155866,0.75599,2644.0,2643.9,3.2078]
[1749025156065,0.75593,2644.3,2644.0,0.75599]
[1749025156272,0.75599,2644.0,2643.9,3.2078]
[1749025160477,0.82330476,2644.0,2643.9,3.2078]
[1749025161070,0.06731476,2644.0,2643.9,3.96382]
[1749025161276,0.82330476,2644.0,2643.9,3.2078]
[1749025164079,0.82330476,2644.0,2643.9,4.4741]
[1749025164275,0.82330476,2644.0,2643.9,3.2078]
[1749025164780,0.75608,2643.7,2643.6,9.0858]
[1749025164975,0.75608,2643.7,2643.6,3.2078]
[1749025165275,0.75608,2643.7,2643.6,1.2663]
[1749025166176,0.75608,2643.7,2643.6,2.9573]
[1749025166577,0.75608,2643.7,2643.6,8.0553]
[1749025166973,0.75608,2643.7,2643.6,6.789]
[1749025167576,0.75608,2643.7,2643.6,7.9965]
[1749025167778,3.27511476,2644.0,2643.6,7.9965]
[1749025167983,0.75608,2643.7,2643.6,7.9965]
[1749025169383,0.75608,2643.7,2643.6,6.771]
[1749025169579,0.75608,2643.7,2643.6,1.691]
[1749025169780,0.75606,2643.8,2643.6,9.9798]
[1749025170077,0.75608,2643.7,2643.6,9.9798]
[1749025170276,3.27511476,2644.0,2643.6,9.9798]
[1749025170484,0.82332476,2644.0,2643.9,3.2078]
[1749025171180,0.06731476,2644.0,2643.9,3.2078]
[1749025171378,0.82330476,2644.0,2643.9,3.2078]
[1749025171684,0.82330476,2644.0,2643.9,9.9778]
[1749025174084,0.82330476,2644.0,2643.9,9.9678]
[1749025175280,0.82330476,2644.0,2643.9,11.2247]
[1749025176488,0.82330476,2644.0,2643.9,9.9678]
[1749025177490,0.82330476,2644.0,2643.9,3.2078]
[1749025177788,0.82330476,2644.0,2643.9,9.9558]
[1749025178287,0.82330476,2644.0,2643.9,9.9538]
[1749025178890,0.82330476,2644.0,2643.9,4.8938]
[1749025179090,0.82330476,2644.0,2643.9,1.686]
[1749025179286,1.89019,2643.8,2643.0,3.2078]
[1749025179589,0.75622,2643.2,2643.0,3.2078]
[1749025179782,0.75622,2643.2,2643.1,15.82582141]
[1749025180288,0.75622,2643.2,2643.1,10.76682141]
[1749025180590,2.83712,2643.2,2643.1,15.82282141]
[1749025180984,2.83712,2643.2,2643.1,10.76682141]
[1749025181184,2.83712,2643.2,2643.1,15.82082141]
[1749025181385,2.83712,2643.2,2643.1,15.81982141]
[1749025181588,1.57371,2643.3,2643.1,15.81982141]
[1749025181796,0.75622,2643.2,2643.1,15.81982141]
[1749025182392,1.57372,2643.3,2643.1,15.81982141]
[1749025182592,1.57371,2643.3,2643.1,15.81982141]
[1749025182993,1.57371,2643.3,2643.1,15.81133403]
[1749025183201,0.8175,2643.3,2643.1,15.81133403]
[1749025183490,7.08565,2643.8,2643.1,15.81133403]
[1749025183695,7.08565,2643.8,2643.2,4.4668]
[1749025183696,0.75619,2643.3,2643.2,4.4668]
[1749025183897,0.75619,2643.3,2643.2,3.2078]
[1749025184298,0.75619,2643.3,2643.2,9.9388]
[1749025184791,0.75616,2643.5,2643.2,11.2037]
[1749025185090,0.75616,2643.5,2643.3,1.2649]
[1749025185498,0.7677,2643.7,2643.3,1.2649]
[1749025185697,0.75617,2643.4,2643.3,1.9163]
[1749025185899,0.75616,2643.5,2643.3,1.9163]
[1749025186093,0.75617,2643.4,2643.3,1.9163]
[1749025186294,0.75617,2643.4,2643.3,0.6514]
[1749025186494,0.75619,2643.3,2643.2,15.8168]
[1749025187095,0.75619,2643.3,2643.2,17.0817]
[1749025187893,0.75619,2643.3,2643.2,12.0367]
[1749025188201,0.75619,2643.3,2643.2,15.8038]
[1749025189704,0.75619,2643.3,2643.2,9.9258]
[1749025189897,0.75619,2643.3,2643.2,9.9198]
[1749025190997,0.82350476,2643.3,2643.2,9.9198]
[1749025191797,0.06731476,2643.3,2643.2,11.2473]
[1749025191997,0.06731476,2643.3,2643.2,12.00352]
[1749025192499,0.82350476,2643.3,2643.2,11.2473]
[1749025192700,0.06731476,2643.3,2643.2,12.00352]
[1749025192898,0.82350476,2643.3,2643.2,11.2473]
[1749025193499,0.82350476,2643.3,2643.2,12.00352]
[1749025194196,0.06731476,2643.3,2643.2,12.00352]
[1749025194401,0.82350476,2643.3,2643.2,12.00352]
[1749025194598,0.82350476,2643.3,2643.2,11.2473]
[1749025195307,0.82350476,2643.3,2643.2,11.2293]
[1749025196008,0.82350476,2643.3,2643.2,4.5353]
[1749025196306,0.82350476,2643.3,2643.2,11.2263]
[1749025196507,0.82350476,2643.3,2643.2,11.98252]
[1749025197003,0.06731476,2643.3,2643.2,11.98252]
[1749025198107,0.82350476,2643.3,2643.2,11.98252]
[1749025198404,0.82350476,2643.3,2643.2,11.2263]
[1749025199004,0.82350476,2643.3,2643.2,9.8318]
[1749025199798,0.82350476,2643.3,2643.2,4.8388]
[1749025200000,0.06731476,2643.3,2643.2,10.58502]
[1749025200205,0.06731476,2643.3,2643.2,11.81782]
[1749025200903,0.82350476,2643.3,2643.2,5.59502]
[1749025201108,0.06731476,2643.3,2643.2,10.58302]
[1749025201404,0.82350476,2643.3,2643.2,11.0596]
[1749025201605,0.82350476,2643.3,2643.2,9.8268]
[1749025201910,0.82350476,2643.3,2643.2,1.631]
[1749025202509,0.82350476,2643.3,2643.2,6.618]
[1749025202812,0.82350476,2643.3,2643.1,9.07233403]
[1749025202813,0.75622,2643.2,2643.1,9.07233403]
[1749025203002,1.41162,2643.2,2643.1,10.70333403]
[1749025203204,1.41162,2643.2,2643.1,15.68833403]
[1749025203506,1.41162,2643.2,2643.1,15.68733403]
[1749025203710,2.72112,2643.2,2643.1,15.68733403]
[1749025204010,0.6554,2643.2,2643.1,15.68733403]
[1749025204402,1.41162,2643.2,2643.1,15.68733403]
[1749025204601,1.41162,2643.2,2643.1,15.68233403]
[1749025205208,0.72271476,2643.2,2643.1,15.68233403]
[1749025205907,0.72271476,2643.2,2643.1,16.92583403]
[1749025206113,0.72271476,2643.2,2643.1,15.68233403]
[1749025206409,0.06731476,2643.2,2643.1,18.89013403]
[1749025206607,0.82353476,2643.2,2643.1,18.89013403]
[1749025207108,0.06731476,2643.2,2643.1,19.64638403]
[1749025207317,0.06731476,2643.2,2643.1,20.88988403]
[1749025208314,0.75614,2643.5,2643.2,0.75622]
[1749025208517,0.75609,2643.7,2643.4,3.96395]
[1749025208709,0.75611,2643.6,2643.5,6.2025]
[1749025209012,0.6636,2643.8,2643.5,6.2025]
[1749025209212,0.75611,2643.6,2643.5,6.2025]
[1749025209409,0.75609,2643.7,2643.5,6.2025]
[1749025209612,5.09779,2644.0,2643.5,6.95863]
[1749025209811,3.2078,2644.0,2643.5,6.2025]
[1749025210012,0.75603,2643.9,2643.5,6.2025]
[1749025210218,0.681,2644.1,2643.6,0.75609]
[1749025210514,0.75605,2643.8,2643.7,1.2345]
[1749025210814,0.75601,2644.0,2643.7,10.16737]
[1749025211014,0.75601,2644.0,2643.8,1.2345]
[1749025211213,0.75601,2644.0,2643.9,1.631]
[1749025212423,1.43698,2644.1,2643.9,1.631]
[1749025212721,1.43698,2644.1,2644.0,4.961]
[1749025213319,1.43697,2644.1,2644.0,4.961]
[1749025213518,0.75596,2644.2,2644.0,6.231]
[1749025213717,0.75597,2644.1,2644.0,6.231]
[1749025214231,3.2078,2644.3,2644.0,6.231]
[1749025214411,0.75595,2644.2,2644.0,6.231]
[1749025214722,4.38962,2644.3,2644.0,7.61369]
[1749025214913,0.75594,2644.2,2644.0,7.61369]
[1749025215716,3.6337,2644.3,2644.0,6.8577]
[1749025215916,3.6337,2644.3,2644.2,0.75594]
[1749025216115,0.4259,2644.3,2644.2,0.75594]
[1749025217029,0.4259,2644.3,2644.0,5.1045]
[1749025217317,0.75597,2644.1,2644.0,5.1045]
[1749025217526,0.75594,2644.2,2644.0,11.6825]
[1749025217819,0.75594,2644.2,2644.0,12.43848]
[1749025218020,0.75594,2644.2,2644.0,11.6825]
[1749025218423,0.75594,2644.2,2644.0,12.43848]
[1749025219219,1.41453,2644.3,2644.1,0.75597]
[1749025219421,0.06731476,2644.2,2644.1,0.75597]
[1749025221722,0.82327476,2644.2,2644.1,6.565]
[1749025221919,0.06731476,2644.2,2644.1,7.32097]
[1749025222120,0.82325476,2644.2,2644.1,6.565]
[1749025222519,0.06731476,2644.2,2644.1,7.32097]
[1749025223322,0.82325476,2644.2,2644.1,6.565]
[1749025223524,0.06731476,2644.2,2644.1,7.32097]
[1749025224126,0.82325476,2644.2,2644.1,6.565]
[1749025224422,0.06731476,2644.2,2644.1,6.565]
[1749025224625,0.82325476,2644.2,2644.1,6.565]
[1749025224826,0.06731476,2644.2,2644.1,7.32097]
[1749025225325,0.06731476,2644.2,2644.1,6.565]
[1749025225524,0.82325476,2644.2,2644.1,6.565]
[1749025225729,0.06731476,2644.2,2644.1,7.32097]
[1749025225920,0.06731476,2644.2,2644.1,8.55397]
[1749025233627,0.06731476,2644.2,2644.1,8.48297]
[1749025237132,0.06731476,2644.2,2644.1,14.36097]
[1749025237529,0.06731476,2644.2,2644.1,8.47197]
[1749025238033,0.06731476,2644.2,2644.1,1.98897]
[1749025238225,0.82325476,2644.2,2644.1,1.233]
[1749025238430,0.75597,2644.1,2644.0,3.8345]
[1749025238632,0.75597,2644.1,2644.0,9.6888]
[1749025238827,1.37667,2644.1,2644.0,10.44479]
[1749025239036,0.6207,2644.1,2644.0,10.44479]
[1749025239933,0.6207,2644.1,2644.0,3.96379]
[1749025240133,0.6207,2644.1,2644.0,10.44079]
[1749025240938,1.37667,2644.1,2644.0,3.2078]
[1749025241138,1.37667,2644.1,2644.0,9.6818]
[1749025241340,0.6207,2644.1,2644.0,10.43779]
[1749025241740,0.6207,2644.1,2644.0,10.43679]
[1749025242042,0.6207,2644.1,2644.0,9.6808]
[1749025242241,1.37667,2644.1,2644.0,9.6808]
[1749025242444,0.6207,2644.1,2644.0,10.43679]
[1749025242647,1.37667,2644.1,2644.0,9.6778]
[1749025242838,0.06731476,2644.2,2644.0,9.6778]
[1749025243043,0.06731476,2644.2,2644.1,0.75597]
[1749025243244,0.06731476,2644.2,2644.1,2.02477]
[1749025244941,0.06731476,2644.2,2644.0,3.2078]
[1749025245147,0.82328476,2644.2,2644.1,1.588]
[1749025245342,0.82328476,2644.2,2644.1,6.476]
[1749025245750,0.75597,2644.1,2644.0,3.2078]
[1749025245953,0.75597,2644.1,2644.0,10.43879]
[1749025246147,0.75597,2644.1,2644.0,9.6828]
[1749025246453,0.75597,2644.1,2644.0,9.6818]
[1749025247147,0.75597,2644.1,2644.0,3.2078]
[1749025247453,0.75597,2644.1,2644.0,9.6788]
[1749025247754,0.75597,2644.1,2644.0,3.2078]
[1749025248051,0.75597,2644.1,2644.0,9.6778]
[1749025250357,0.6444,2644.3,2644.0,9.6778]
[1749025250558,1.40031,2644.3,2644.1,0.75595]
[1749025250744,0.6444,2644.3,2644.2,7.22094]
[1749025250949,0.6444,2644.3,2644.2,6.465]
[1749025251254,1.40031,2644.3,2644.2,6.465]
[1749025251450,1.40031,2644.3,2644.2,6.464]
[1749025251655,2.68981,2644.3,2644.2,6.464]
[1749025251946,1.9339,2644.3,2644.0,3.2078]
[1749025252152,2.68981,2644.3,2644.2,6.463]
[1749025252951,0.6444,2644.3,2644.0,3.2078]
[1749025253255,0.6444,2644.3,2644.2,0.75594]
[1749025253457,0.43157301,2644.4,2644.3,0.75591]
[1749025253658,0.43157301,2644.4,2644.3,3.96371]
[1749025254256,1.18745301,2644.4,2644.3,6.468]
[1749025255157,1.18745301,2644.4,2644.3,9.6758]
[1749025255661,1.18745301,2644.4,2644.3,6.468]
[1749025256052,1.18745301,2644.4,2644.0,3.2078]
[1749025256053,0.75597,2644.1,2644.0,3.2078]
[1749025256358,0.75597,2644.1,2644.0,9.6728]
[1749025256956,0.82328476,2644.1,2644.0,1.588]
[1749025257151,0.82328476,2644.1,2644.0,6.464]
[1749025258854,0.75605,2643.8,2643.7,3.2078]
[1749025259057,0.75605,2643.8,2643.7,9.6368]
[1749025259560,0.75605,2643.8,2643.7,9.6358]
[1749025259761,0.75604,2643.9,2643.7,9.6358]
[1749025260059,0.75604,2643.9,2643.7,10.39186]
[1749025260361,0.75599,2644.0,2643.8,6.425]
[1749025260661,0.06731476,2644.1,2643.8,6.425]
[1749025260662,0.75602,2643.9,2643.8,6.425]
[1749025261956,0.75605,2643.8,2643.7,3.2078]
[1749025262254,1.42515,2643.8,2643.7,6.421]
[1749025262861,1.42515,2643.8,2643.7,6.419]
[1749025263757,0.75611,2643.6,2643.5,0.6316]
[1749025263957,0.6691,2643.8,2643.5,7.0496]
[1749025264157,0.75611,2643.6,2643.5,7.0496]
[1749025264360,0.6691,2643.8,2643.5,8.3769]
[1749025264562,0.75606,2643.8,2643.6,0.75609]
[1749025264759,2.58373476,2644.1,2643.7,1.3273]
[1749025264950,0.75605,2643.8,2643.7,1.3273]
[1749025265260,0.75605,2643.8,2643.7,6.1843]
[1749025266163,0.75605,2643.8,2643.7,6.412]
[1749025266760,0.75605,2643.8,2643.7,6.41]
[1749025267360,0.75608,2643.7,2643.5,2.59652]
[1749025267553,0.75608,2643.7,2643.6,6.408]
[1749025267759,1.88999,2644.0,2643.5,2.59652]
[1749025267760,0.75611,2643.6,2643.5,0.6316]
[1749025267957,0.75611,2643.6,2643.5,0.5505]
[1749025268267,0.75611,2643.6,2643.1,18.15813403]
[1749025268268,0.75622,2643.2,2643.1,9.07233403]
[1749025268565,0.75622,2643.2,2643.1,15.48033403]
[1749025268960,0.75622,2643.2,2643.1,9.07233403]
[1749025269159,0.75622,2643.2,2643.1,10.63033403]
[1749025269567,0.75622,2643.2,2643.1,15.47933403]
[1749025270771,5.75622,2643.2,2643.1,9.07233403]
[1749025270972,5.75622,2643.2,2643.1,15.47533403]
[1749025271264,5.75622,2643.2,2643.1,10.63033403]
[1749025271471,5.75622,2643.2,2643.1,15.47433403]
[1749025271963,5.75622,2643.2,2643.1,10.63033403]
[1749025272265,5.75622,2643.2,2643.1,15.47233403]
[1749025272569,6.05245099,2643.2,2643.1,15.47233403]
[1749025272865,5.75622,2643.2,2643.1,15.47233403]
[1749025273267,0.75622,2643.2,2643.1,15.47233403]
[1749025274376,0.75622,2643.2,2643.1,15.47033403]
[1749025276373,3.853,2643.5,2643.1,15.47033403]
[1749025276570,0.7562,2643.3,2643.2,0.6882]
[1749025276870,0.7562,2643.3,2643.2,1.8958]
[1749025277577,0.75619,2643.3,2643.2,1.8958]
[1749025278075,0.75622,2643.2,2643.1,9.07233403]
[1749025278271,0.75622,2643.2,2643.1,15.46633403]
[1749025278474,0.75622,2643.2,2643.1,9.07233403]
[1749025278773,0.75622,2643.2,2643.1,15.46533403]
[1749025279484,0.75622,2643.2,2643.1,15.46433403]
[1749025281283,5.75622,2643.2,2643.1,10.63133403]
[1749025281472,5.75622,2643.2,2643.1,15.46033403]
[1749025281774,0.75622,2643.2,2643.1,15.46033403]
[1749025282778,0.75622,2643.2,2643.1,10.63133403]
[1749025282976,5.75622,2643.2,2643.1,10.63133403]
[1749025283277,0.75622,2643.2,2643.1,15.46033403]
[1749025283981,0.75622,2643.2,2643.1,16.77593403]
[1749025284274,2.62289,2643.5,2643.1,16.77593403]
[1749025284582,0.75621,2643.3,2643.2,1.9947]
[1749025284785,0.75621,2643.3,2643.2,6.8237]
[1749025286074,0.75622,2643.2,2643.1,9.07233403]
[1749025286276,0.75622,2643.2,2643.1,10.63133403]
[1749025286477,0.75622,2643.2,2643.1,15.46033403]
[1749025286675,0.75622,2643.2,2643.1,15.45933403]
[1749025287072,0.75622,2643.2,2643.1,16.78033403]
[1749025287277,0.75622,2643.2,2643.1,15.46033403]
[1749025290177,0.75622,2643.2,2643.1,16.78143403]
[1749025290683,0.75622,2643.2,2643.1,19.98923403]
[1749025290981,0.75622,2643.2,2643.1,20.69493403]
[1749025291182,0.75622,2643.2,2643.1,17.48713403]
[1749025291378,0.75622,2643.2,2643.1,11.09913403]
[1749025291579,0.75622,2643.2,2643.1,16.74643403]
[1749025292575,0.75622,2643.2,2643.1,10.39343403]
[1749025292879,0.75622,2643.2,2643.1,15.42333403]
[1749025293477,0.75622,2643.2,2643.1,15.42233403]
[1749025294376,0.75622,2643.2,2643.1,16.63193403]
[1749025295084,0.75622,2643.2,2643.1,15.41833403]
[1749025295884,0.75622,2643.2,2643.1,16.62793403]
[1749025296482,0.82353476,2643.2,2643.1,16.62793403]
[1749025297082,0.82353476,2643.2,2643.1,9.07233403]
[1749025297380,0.82353476,2643.2,2643.1,15.41533403]
[1749025297682,0.82353476,2643.2,2643.1,15.41433403]
[1749025297986,0.82353476,2643.2,2643.1,15.41533403]
[1749025298485,3.2078,2643.7,2643.2,0.75621]
[1749025298687,3.2078,2643.7,2643.3,7.5117]
[1749025298886,0.75617,2643.4,2643.3,7.5117]
[1749025300180,0.75617,2643.4,2643.3,2.6997]
[1749025300374,0.75617,2643.4,2643.3,9.0407]
[1749025300575,0.75617,2643.4,2643.3,2.2496]
[1749025300779,0.75617,2643.4,2643.3,7.0576]
[1749025301775,0.75617,2643.4,2643.3,8.266]
[1749025302386,0.75617,2643.4,2643.3,1.531]
[1749025302590,0.75617,2643.4,2643.3,6.335]
[1749025303388,0.75617,2643.4,2643.3,7.5838]
[1749025303887,0.75617,2643.4,2643.3,6.335]
[1749025304080,1.60239894,2643.4,2643.3,6.335]
[1749025304486,1.60240554,2643.4,2643.3,6.335]
[1749025304987,0.75622,2643.2,2643.1,9.07233403]
[1749025305188,1.60245554,2643.2,2643.1,16.65313403]
[1749025305680,1.6697703,2643.2,2643.1,15.40333403]
[1749025306291,1.6697703,2643.2,2643.1,10.60333403]
[1749025306480,1.6697703,2643.2,2643.1,15.40333403]
[1749025306687,6.60245554,2643.2,2643.1,5.78853076]
[1749025306884,7.80875554,2643.2,2643.1,10.58953076]
[1749025307388,2.80875554,2643.2,2643.1,10.58953076]
[1749025308183,2.80875554,2643.2,2643.1,5.78853076]
[1749025308389,7.80875554,2643.2,2643.1,12.11753076]
[1749025309482,2.80875554,2643.2,2643.1,12.11753076]
[1749025309685,2.8760703,2643.2,2643.1,12.11753076]
[1749025310794,2.8760703,2643.2,2643.1,12.11253076]
[1749025312495,2.87506992,2643.2,2643.1,12.11253076]
[1749025312896,2.87506992,2643.2,2643.1,7.31953076]
[1749025313092,2.87506992,2643.2,2643.1,12.10853076]
[1749025313997,2.87506992,2643.2,2643.1,6.32]
[1749025314197,2.87506992,2643.2,2643.1,6.317]
[1749025315899,2.87569357,2643.2,2643.1,6.317]
[1749025316607,2.02983476,2643.2,2643.1,6.317]
[1749025316904,2.80862536,2643.2,2643.1,6.317]
[1749025317903,2.87594012,2643.2,2643.1,6.317]
[1749025318103,0.75625,2643.1,2643.0,0.00567301]
[1749025318408,5.48195536,2643.1,2643.0,4.78767301]
[1749025319304,4.81015536,2643.1,2643.0,4.78767301]
[1749025319710,4.81015536,2643.1,2643.0,6.09567301]
[1749025320009,4.81015536,2643.1,2643.0,6.79497301]
[1749025320010,1.60235536,2643.1,2643.0,6.79497301]
[1749025320603,0.75625,2643.1,2643.0,6.79497301]
[1749025320804,1.60223617,2643.1,2643.0,6.79497301]
[1749025321404,1.60223617,2643.1,2643.0,7.49847301]
[1749025323412,1.60318649,2643.1,2643.0,7.49847301]
[1749025325410,0.75616,2643.5,2643.1,0.75624]
[1749025325713,1.89022,2643.7,2643.3,3.2078]
[1749025325914,0.82345476,2643.5,2643.4,6.0843]
[1749025327116,0.75614,2643.5,2643.4,6.0843]
[1749025329217,0.75614,2643.5,2643.4,6.0773]
[1749025330115,0.75614,2643.5,2643.4,7.5813]
[1749025332018,0.75614,2643.5,2643.4,1.505]
[1749025332220,0.75614,2643.5,2643.4,6.269]
[1749025332418,3.96394,2643.5,2643.4,1.505]
[1749025332717,3.96394,2643.5,2643.4,6.268]
[1749025332918,3.96394,2643.5,2643.4,6.267]
[1749025333113,3.96394,2643.5,2643.4,1.505]
[1749025333619,3.96394,2643.5,2643.4,6.267]
[1749025335120,4.03125476,2643.5,2643.4,6.267]
[1749025335415,0.75625,2643.1,2643.0,0.70497301]
[1749025335621,0.75625,2643.1,2643.0,6.96897301]
[1749025336215,0.75625,2643.1,2643.0,2.20997301]
[1749025336420,0.75625,2643.1,2643.0,6.97097301]
[1749025337822,0.75625,2643.1,2643.0,2.20997301]
[1749025338021,0.82356476,2643.1,2643.0,6.96797301]
[1749025338321,1.52696476,2643.1,2643.0,6.96797301]
[1749025338515,1.52696476,2643.1,2643.0,2.20997301]
[1749025338714,1.52696476,2643.1,2643.0,6.96797301]
[1749025338915,1.52696476,2643.1,2643.0,6.26867301]
[1749025339117,1.45965,2643.1,2643.0,6.26867301]
[1749025339313,1.45965,2643.1,2643.0,0.00567301]
[1749025339518,3.43035,2643.1,2643.0,4.75600301]
[1749025339729,2.17245,2643.1,2643.0,4.75600301]
[1749025339930,1.45965,2643.1,2643.0,4.75600301]
[1749025340219,1.52696476,2643.1,2643.0,4.76400301]
[1749025340419,0.75634,2642.8,2642.7,9.081]
[1749025340623,0.75634,2642.8,2642.7,15.351]
[1749025340826,0.75634,2642.8,2642.7,10.586]
[1749025341024,0.75634,2642.8,2642.7,15.352]
[1749025342027,2.01424,2642.8,2642.7,15.352]
[1749025342819,2.01424,2642.8,2642.7,10.586]
[1749025343021,2.85762813,2642.8,2642.7,15.349]
[1749025343221,7.85762813,2642.8,2642.7,8.66888652]
[1749025343526,6.59972813,2642.8,2642.7,13.43088652]
[1749025343724,1.59972813,2642.8,2642.7,13.43088652]
[1749025343929,1.59943212,2642.8,2642.7,15.41238652]
[1749025344131,1.59943212,2642.8,2642.7,16.08358652]
[1749025344322,1.59932338,2642.8,2642.7,16.08358652]
[1749025344523,0.84298338,2642.8,2642.7,16.08358652]
[1749025346633,1.59932338,2642.8,2642.7,17.58558652]
[1749025348032,1.59952258,2642.8,2642.7,17.58558652]
[1749025348832,0.84318258,2642.8,2642.7,17.58558652]
[1749025349331,1.59952258,2642.8,2642.7,17.58558652]
[1749025349831,1.59952258,2642.8,2642.7,8.9167]
[1749025352026,0.75634,2642.8,2642.7,8.9167]
[1749025352530,1.59931424,2642.8,2642.7,14.7947]
[1749025354538,1.666629,2642.8,2642.7,14.7837]
[1749025356232,1.66977692,2642.8,2642.7,12.117]
[1749025357332,0.91343692,2642.8,2642.7,15.3248]
[1749025358138,1.66977692,2642.8,2642.7,15.3248]